[Event "Late-Titled-Tuesday-Blitz-July-09-2024"]
[Site "Chess.com"]
[Date "2024.07.09"]
[Round "2"]
[White "NowInChess"]
[Black "ExchangeAB"]
[Result "1-0"]
[WhiteElo "2217"]
[BlackElo "2456"]
[TimeControl "180+1"]
[EndTime "14:18:24 PDT"]
[Termination "NowInChess won by checkmate"]

1. e4 {[%clk 0:03:00.9]} 1... c6 {[%clk 0:02:59.9]} 2. d4 {[%clk 0:03:00.8]}
2... d5 {[%clk 0:03:00.8]} 3. exd5 {[%clk 0:03:01.2]} 3... cxd5 {[%clk
0:03:01.5]} 4. c4 {[%clk 0:03:01.6]} 4... Nf6 {[%clk 0:03:02.4]} 5. Nc3 {[%clk
0:03:01.6]} 5... g6 {[%clk 0:03:03]} 6. Qb3 {[%clk 0:03:01.5]} 6... Bg7 {[%clk
0:03:02.5]} 7. cxd5 {[%clk 0:03:01]} 7... O-O {[%clk 0:03:03.1]} 8. Be2 {[%clk
0:02:55.7]} 8... Qb6 {[%clk 0:03:02.2]} 9. Qxb6 {[%clk 0:02:49.2]} 9... axb6
{[%clk 0:03:02.3]} 10. Bf3 {[%clk 0:02:48.9]} 10... Na6 {[%clk 0:03:01.6]} 11.
Nge2 {[%clk 0:02:35]} 11... Nb4 {[%clk 0:03:01.4]} 12. O-O {[%clk 0:02:34.6]}
12... Rd8 {[%clk 0:02:58.1]} 13. Bg5 {[%clk 0:02:17.3]} 13... Kf8 {[%clk
0:02:44.3]} 14. Bxf6 {[%clk 0:02:07.5]} 14... Bxf6 {[%clk 0:02:45.2]} 15. a3
{[%clk 0:02:06.6]} 15... Na6 {[%clk 0:02:35.9]} 16. Nb5 {[%clk 0:02:05.4]} 16...
Bd7 {[%clk 0:02:32]} 17. Nec3 {[%clk 0:01:54]} 17... Rac8 {[%clk 0:02:28.1]} 18.
d6 {[%clk 0:01:45.9]} 18... Bc6 {[%clk 0:02:28.1]} 19. dxe7+ {[%clk 0:01:43.9]}
19... Kxe7 {[%clk 0:02:27.1]} 20. Rfe1+ {[%clk 0:01:39.9]} 20... Kf8 {[%clk
0:02:26.9]} 21. d5 {[%clk 0:01:39.3]} 21... Bxb5 {[%clk 0:02:15.6]} 22. Nxb5
{[%clk 0:01:35.3]} 22... Rc5 {[%clk 0:02:14.1]} 23. a4 {[%clk 0:01:21.4]} 23...
Bxb2 {[%clk 0:02:12.7]} 24. Rad1 {[%clk 0:01:20.2]} 24... Nb4 {[%clk 0:02:05.7]}
25. d6 {[%clk 0:01:14.8]} 25... Nc6 {[%clk 0:02:03]} 26. d7 {[%clk 0:01:08.8]}
26... Kg7 {[%clk 0:02:01.8]} 27. g3 {[%clk 0:01:04]} 27... Ne5 {[%clk
0:01:55.6]} 28. Bxb7 {[%clk 0:00:56]} 28... Rxd7 {[%clk 0:01:52.6]} 29. Rxd7
{[%clk 0:00:53.1]} 29... Nxd7 {[%clk 0:01:53.5]} 30. Re7 {[%clk 0:00:47]} 30...
Ne5 {[%clk 0:01:28.3]} 31. f4 {[%clk 0:00:40.9]} 31... Nc6 {[%clk 0:01:20.1]}
32. Rc7 {[%clk 0:00:22.3]} 32... Na5 {[%clk 0:01:17.1]} 33. Rd7 {[%clk
0:00:17.1]} 33... Rc1+ {[%clk 0:01:02.2]} 34. Kf2 {[%clk 0:00:15.3]} 34... Rc2+
{[%clk 0:01:02.3]} 35. Kf3 {[%clk 0:00:11.4]} 35... Kf8 {[%clk 0:01:00.2]} 36.
Nd6 {[%clk 0:00:06.5]} 36... Rc3+ {[%clk 0:00:54.7]} 37. Ke4 {[%clk 0:00:04.5]}
37... Ba3 {[%clk 0:00:42.1]} 38. Rxf7+ {[%clk 0:00:03.4]} 38... Kg8 {[%clk
0:00:40.3]} 39. Bd5 {[%clk 0:00:03.8]} 39... Bxd6 {[%clk 0:00:36.3]} 40. Rc7+
{[%clk 0:00:03.5]} 40... Kf8 {[%clk 0:00:34]} 41. Rxc3 {[%clk 0:00:04]} 41...
Bc5 {[%clk 0:00:32.3]} 42. Rd3 {[%clk 0:00:03.3]} 42... Ke7 {[%clk 0:00:31.1]}
43. Rd1 {[%clk 0:00:02.9]} 43... Kf6 {[%clk 0:00:30.4]} 44. g4 {[%clk
0:00:03.1]} 44... h6 {[%clk 0:00:28.9]} 45. h4 {[%clk 0:00:01.8]} 45... g5
{[%clk 0:00:29.7]} 46. hxg5+ {[%clk 0:00:01.6]} 46... hxg5 {[%clk 0:00:30.6]}
47. f5 {[%clk 0:00:02.2]} 47... Bd6 {[%clk 0:00:29.4]} 48. Rh1 {[%clk
0:00:02.3]} 48... Bc5 {[%clk 0:00:30.3]} 49. Rh6+ {[%clk 0:00:02.4]} 49... Kg7
{[%clk 0:00:31.2]} 50. Rg6+ {[%clk 0:00:02.4]} 50... Kf8 {[%clk 0:00:31.8]} 51.
Rxg5 {[%clk 0:00:03.3]} 51... Ke7 {[%clk 0:00:28.8]} 52. Rg6 {[%clk 0:00:04.2]}
52... Bf2 {[%clk 0:00:28.1]} 53. f6+ {[%clk 0:00:05.1]} 53... Kf8 {[%clk
0:00:28.1]} 54. Rg8# {[%clk 0:00:05.2]} 1-0

[Event "Late-Titled-Tuesday-Blitz-July-09-2024"]
[Site "Chess.com"]
[Date "2024.07.09"]
[Round "2"]
[White "Fjal"]
[Black "Nicolik"]
[Result "1-0"]
[WhiteElo "2405"]
[BlackElo "2703"]
[TimeControl "180+1"]
[EndTime "14:18:25 PDT"]
[Termination "Fjal won by checkmate"]

1. Nf3 {[%clk 0:03:00.9]} 1... d5 {[%clk 0:02:59.8]} 2. g3 {[%clk 0:03:01.7]}
2... Nc6 {[%clk 0:02:58.9]} 3. Bg2 {[%clk 0:03:02]} 3... Bf5 {[%clk 0:02:59.5]}
4. d4 {[%clk 0:03:01.7]} 4... Nb4 {[%clk 0:02:58.4]} 5. Na3 {[%clk 0:03:00.6]}
5... e6 {[%clk 0:02:59]} 6. O-O {[%clk 0:03:00.2]} 6... Nf6 {[%clk 0:02:59.1]}
7. c4 {[%clk 0:02:44.7]} 7... c6 {[%clk 0:02:57]} 8. Bd2 {[%clk 0:02:40.8]} 8...
a5 {[%clk 0:02:56.9]} 9. Nh4 {[%clk 0:02:36.4]} 9... Be4 {[%clk 0:02:55.6]} 10.
f3 {[%clk 0:02:28]} 10... Bg6 {[%clk 0:02:55.6]} 11. c5 {[%clk 0:02:27.9]} 11...
e5 {[%clk 0:02:54.3]} 12. dxe5 {[%clk 0:02:12.5]} 12... Bxc5+ {[%clk 0:02:41.9]}
13. Kh1 {[%clk 0:02:12.6]} 13... Nd7 {[%clk 0:02:42.4]} 14. f4 {[%clk
0:02:04.6]} 14... Be4 {[%clk 0:01:59.2]} 15. Bxe4 {[%clk 0:02:01.7]} 15... dxe4
{[%clk 0:02:00.1]} 16. Nc2 {[%clk 0:01:52.7]} 16... Nd5 {[%clk 0:01:56.7]} 17.
a3 {[%clk 0:01:23.6]} 17... e3 {[%clk 0:01:48.6]} 18. Bc1 {[%clk 0:01:11.5]}
18... a4 {[%clk 0:01:16.2]} 19. Ng2 {[%clk 0:01:11]} 19... f6 {[%clk 0:01:01.5]}
20. Ncxe3 {[%clk 0:00:36.3]} 20... Nxe3 {[%clk 0:00:56.9]} 21. Bxe3 {[%clk
0:00:36.6]} 21... fxe5 {[%clk 0:00:53.5]} 22. fxe5 {[%clk 0:00:35.7]} 22... Qe7
{[%clk 0:00:52.8]} 23. Bxc5 {[%clk 0:00:28.6]} 23... Nxc5 {[%clk 0:00:51.8]} 24.
Rc1 {[%clk 0:00:26.8]} 24... Qxe5 {[%clk 0:00:45.6]} 25. Qc2 {[%clk 0:00:23.1]}
25... Ne4 {[%clk 0:00:40.2]} 26. Rf4 {[%clk 0:00:21.6]} 26... Nf6 {[%clk
0:00:34.8]} 27. Rd1 {[%clk 0:00:19.7]} 27... O-O {[%clk 0:00:34.8]} 28. Qc4+
{[%clk 0:00:18.2]} 28... Nd5 {[%clk 0:00:35.1]} 29. e4 {[%clk 0:00:17.4]} 29...
Qxb2 {[%clk 0:00:15.8]} 30. exd5 {[%clk 0:00:15]} 30... b5 {[%clk 0:00:15.6]}
31. Qxc6 {[%clk 0:00:13.5]} 31... Qxa3 {[%clk 0:00:15.9]} 32. Qe6+ {[%clk
0:00:13]} 32... Kh8 {[%clk 0:00:16]} 33. Rdf1 {[%clk 0:00:13.6]} 33... Rxf4
{[%clk 0:00:14.5]} 34. Nxf4 {[%clk 0:00:12.8]} 34... Qc5 {[%clk 0:00:13.3]} 35.
d6 {[%clk 0:00:11.3]} 35... a3 {[%clk 0:00:11.8]} 36. d7 {[%clk 0:00:11.2]}
36... Qf8 {[%clk 0:00:10.7]} 37. Ng6+ {[%clk 0:00:10.7]} 37... hxg6 {[%clk
0:00:11.1]} 38. Rxf8+ {[%clk 0:00:11.1]} 38... Rxf8 {[%clk 0:00:12]} 39. Qe8
{[%clk 0:00:11.4]} 39... Kg8 {[%clk 0:00:09.5]} 40. Qxf8+ {[%clk 0:00:11.3]}
40... Kxf8 {[%clk 0:00:10]} 41. d8=Q+ {[%clk 0:00:12.2]} 41... Kf7 {[%clk
0:00:10.7]} 42. Qa5 {[%clk 0:00:12.2]} 42... Kf6 {[%clk 0:00:11.3]} 43. Qxb5
{[%clk 0:00:12.2]} 43... g5 {[%clk 0:00:12.2]} 44. Qa4 {[%clk 0:00:13]} 44...
Kg6 {[%clk 0:00:12.9]} 45. Qxa3 {[%clk 0:00:13.5]} 45... Kh5 {[%clk 0:00:13.8]}
46. Qd3 {[%clk 0:00:14.2]} 46... g6 {[%clk 0:00:14.3]} 47. Kg2 {[%clk
0:00:15.1]} 47... g4 {[%clk 0:00:14.7]} 48. h3 {[%clk 0:00:16]} 48... gxh3+
{[%clk 0:00:14.9]} 49. Kxh3 {[%clk 0:00:16.9]} 49... g5 {[%clk 0:00:15.5]} 50.
Qd5 {[%clk 0:00:17.2]} 50... Kh6 {[%clk 0:00:15.7]} 51. Kg4 {[%clk 0:00:18.1]}
51... Kg6 {[%clk 0:00:16.3]} 52. Qxg5+ {[%clk 0:00:18.9]} 52... Kh7 {[%clk
0:00:16.3]} 53. Kf5 {[%clk 0:00:19.1]} 53... Kh8 {[%clk 0:00:17.2]} 54. Kf6
{[%clk 0:00:20]} 54... Kh7 {[%clk 0:00:18.1]} 55. Qg7# {[%clk 0:00:20.9]} 1-0

[Event "Late-Titled-Tuesday-Blitz-July-09-2024"]
[Site "Chess.com"]
[Date "2024.07.09"]
[Round "2"]
[White "Os55555"]
[Black "carokannlover213"]
[Result "0-1"]
[WhiteElo "2324"]
[BlackElo "2709"]
[TimeControl "180+1"]
[EndTime "14:18:30 PDT"]
[Termination "carokannlover213 won on time"]

1. b3 {[%clk 0:02:56.5]} 1... d5 {[%clk 0:02:58.8]} 2. e3 {[%clk 0:02:55.9]}
2... e5 {[%clk 0:02:57.8]} 3. Bb2 {[%clk 0:02:56]} 3... Bd6 {[%clk 0:02:57]} 4.
Nf3 {[%clk 0:02:51.1]} 4... Qe7 {[%clk 0:02:54.7]} 5. c4 {[%clk 0:02:46.2]} 5...
d4 {[%clk 0:02:48.3]} 6. exd4 {[%clk 0:02:37.1]} 6... exd4+ {[%clk 0:02:46.7]}
7. Qe2 {[%clk 0:02:37.2]} 7... c5 {[%clk 0:02:47]} 8. Qxe7+ {[%clk 0:02:36]}
8... Nxe7 {[%clk 0:02:47.9]} 9. Na3 {[%clk 0:02:26.9]} 9... a6 {[%clk
0:02:47.7]} 10. d3 {[%clk 0:02:20]} 10... Nbc6 {[%clk 0:02:46.9]} 11. Be2 {[%clk
0:02:18.3]} 11... Nb4 {[%clk 0:02:44.5]} 12. O-O {[%clk 0:02:14.8]} 12... Bf5
{[%clk 0:02:43.9]} 13. Rfd1 {[%clk 0:02:06.9]} 13... Kd7 {[%clk 0:02:43.3]} 14.
Nh4 {[%clk 0:01:56.9]} 14... Be6 {[%clk 0:02:40.8]} 15. g3 {[%clk 0:01:51.6]}
15... g5 {[%clk 0:02:35.2]} 16. Ng2 {[%clk 0:01:51.5]} 16... Bf5 {[%clk
0:02:34.2]} 17. Bc1 {[%clk 0:01:45.4]} 17... h6 {[%clk 0:02:32.6]} 18. f4 {[%clk
0:01:32.1]} 18... g4 {[%clk 0:02:05.2]} 19. Nh4 {[%clk 0:01:31.5]} 19... Be6
{[%clk 0:02:05.3]} 20. Bd2 {[%clk 0:01:22.6]} 20... Nf5 {[%clk 0:01:25.7]} 21.
Nxf5 {[%clk 0:01:14.2]} 21... Bxf5 {[%clk 0:01:26.6]} 22. Bxb4 {[%clk
0:01:14.5]} 22... cxb4 {[%clk 0:01:27.5]} 23. Nc2 {[%clk 0:01:15.2]} 23... a5
{[%clk 0:01:20.9]} 24. Kg2 {[%clk 0:01:10.6]} 24... Bc5 {[%clk 0:01:12.9]} 25.
Re1 {[%clk 0:01:05.5]} 25... h5 {[%clk 0:01:11.1]} 26. Bf1 {[%clk 0:01:04.8]}
26... f6 {[%clk 0:01:08.7]} 27. a3 {[%clk 0:00:59.6]} 27... bxa3 {[%clk
0:00:38.7]} 28. Nxa3 {[%clk 0:00:58.6]} 28... a4 {[%clk 0:00:39.2]} 29. bxa4
{[%clk 0:00:50.4]} 29... Rxa4 {[%clk 0:00:40.1]} 30. Nb5 {[%clk 0:00:49.3]}
30... Rha8 {[%clk 0:00:40.2]} 31. Rxa4 {[%clk 0:00:48.3]} 31... Rxa4 {[%clk
0:00:41.1]} 32. Rd1 {[%clk 0:00:27.5]} 32... Ra2+ {[%clk 0:00:38.7]} 33. Kg1
{[%clk 0:00:27.2]} 33... Kd8 {[%clk 0:00:32.7]} 34. Rb1 {[%clk 0:00:21.6]} 34...
Bd7 {[%clk 0:00:31]} 35. Rb3 {[%clk 0:00:16.6]} 35... Bc6 {[%clk 0:00:29.4]} 36.
Rb1 {[%clk 0:00:14.5]} 36... Kd7 {[%clk 0:00:28.2]} 37. h3 {[%clk 0:00:10.7]}
37... h4 {[%clk 0:00:22.6]} 38. gxh4 {[%clk 0:00:04.5]} 38... g3 {[%clk
0:00:23.5]} 39. Re1 {[%clk 0:00:02]} 39... Bb4 {[%clk 0:00:19.5]} 40. Re2 {[%clk
0:00:01.4]} 40... Rxe2 {[%clk 0:00:13.3]} 41. Bxe2 {[%clk 0:00:02.3]} 41... Bd2
{[%clk 0:00:14.2]} 42. Nxd4 {[%clk 0:00:02.4]} 42... Be3+ {[%clk 0:00:15.1]} 43.
Kf1 {[%clk 0:00:01.4]} 43... g2+ {[%clk 0:00:16]} 0-1

[Event "Late-Titled-Tuesday-Blitz-July-09-2024"]
[Site "Chess.com"]
[Date "2024.07.09"]
[Round "2"]
[White "TokChess"]
[Black "johnmez"]
[Result "0-1"]
[WhiteElo "2570"]
[BlackElo "2297"]
[TimeControl "180+1"]
[EndTime "14:18:30 PDT"]
[Termination "johnmez won on time"]

1. c4 {[%clk 0:03:00.9]} 1... Nf6 {[%clk 0:02:56.6]} 2. g3 {[%clk 0:03:01.3]}
2... g6 {[%clk 0:02:45.5]} 3. Bg2 {[%clk 0:03:02.2]} 3... Bg7 {[%clk 0:02:45.5]}
4. Nf3 {[%clk 0:03:01.6]} 4... O-O {[%clk 0:02:45.5]} 5. O-O {[%clk 0:03:02.1]}
5... d6 {[%clk 0:02:42.2]} 6. d3 {[%clk 0:02:59.9]} 6... c5 {[%clk 0:02:35.3]}
7. Nc3 {[%clk 0:03:00.8]} 7... Nc6 {[%clk 0:02:33.1]} 8. Rb1 {[%clk 0:03:01.7]}
8... Rb8 {[%clk 0:02:26.4]} 9. a3 {[%clk 0:03:02.6]} 9... Nd7 {[%clk 0:02:24.7]}
10. Bd2 {[%clk 0:03:00.3]} 10... a5 {[%clk 0:02:21.8]} 11. Qc1 {[%clk
0:02:56.4]} 11... Re8 {[%clk 0:02:20.1]} 12. Bh6 {[%clk 0:02:53.8]} 12... Bh8
{[%clk 0:02:19.1]} 13. Nd5 {[%clk 0:02:52]} 13... b5 {[%clk 0:02:06.4]} 14. h4
{[%clk 0:02:39]} 14... e6 {[%clk 0:02:00.3]} 15. Nc3 {[%clk 0:02:34.5]} 15... b4
{[%clk 0:01:58.3]} 16. axb4 {[%clk 0:02:33.2]} 16... axb4 {[%clk 0:01:57.4]} 17.
Ne4 {[%clk 0:02:32]} 17... Qe7 {[%clk 0:01:46.1]} 18. Bg5 {[%clk 0:02:27.4]}
18... f6 {[%clk 0:01:44.6]} 19. Bh6 {[%clk 0:02:26.5]} 19... Bb7 {[%clk
0:01:43.5]} 20. Ra1 {[%clk 0:02:15]} 20... Ra8 {[%clk 0:01:40.3]} 21. Rxa8
{[%clk 0:02:03.3]} 21... Rxa8 {[%clk 0:01:39.5]} 22. Bh3 {[%clk 0:02:04.2]}
22... f5 {[%clk 0:01:32.9]} 23. Bg5 {[%clk 0:02:03.3]} 23... Qf8 {[%clk
0:01:31.6]} 24. Ned2 {[%clk 0:01:51.8]} 24... Ra2 {[%clk 0:01:27.5]} 25. b3
{[%clk 0:01:37.6]} 25... h6 {[%clk 0:01:18]} 26. Be3 {[%clk 0:01:34.9]} 26...
Bg7 {[%clk 0:01:07.7]} 27. Re1 {[%clk 0:01:34.1]} 27... Nde5 {[%clk 0:01:01.1]}
28. Nxe5 {[%clk 0:01:26.4]} 28... Nxe5 {[%clk 0:00:59.6]} 29. Bf4 {[%clk
0:01:24.5]} 29... Qa8 {[%clk 0:00:56.2]} 30. Nf1 {[%clk 0:01:14.5]} 30... Rxe2
{[%clk 0:00:36.4]} 31. Rxe2 {[%clk 0:00:42.6]} 31... Nf3+ {[%clk 0:00:36.2]} 32.
Kh1 {[%clk 0:00:41.9]} 32... Nd4+ {[%clk 0:00:35.2]} 33. Re4 {[%clk 0:00:42.1]}
33... fxe4 {[%clk 0:00:23.8]} 34. dxe4 {[%clk 0:00:19.3]} 34... Bxe4+ {[%clk
0:00:22.8]} 35. Kh2 {[%clk 0:00:18.5]} 35... Nf3+ {[%clk 0:00:22.7]} 36. Kh1
{[%clk 0:00:19]} 36... Nxh4+ {[%clk 0:00:22.6]} 37. Kh2 {[%clk 0:00:19.4]} 37...
Nf3+ {[%clk 0:00:22.5]} 38. Kh1 {[%clk 0:00:19.6]} 38... e5 {[%clk 0:00:16.3]}
39. Be3 {[%clk 0:00:17.4]} 39... g5 {[%clk 0:00:13.1]} 40. Qd1 {[%clk
0:00:13.9]} 40... Nd4+ {[%clk 0:00:11.8]} 41. Kh2 {[%clk 0:00:13]} 41... Bf3
{[%clk 0:00:10.9]} 42. Qb1 {[%clk 0:00:10.2]} 42... g4 {[%clk 0:00:09.8]} 43.
Qg6 {[%clk 0:00:03]} 43... gxh3 {[%clk 0:00:08.4]} 44. Bxh6 {[%clk 0:00:03.3]}
44... Qf8 {[%clk 0:00:08]} 0-1

[Event "Late-Titled-Tuesday-Blitz-July-09-2024"]
[Site "Chess.com"]
[Date "2024.07.09"]
[Round "2"]
[White "glebus008"]
[Black "RantomOpening"]
[Result "1-0"]
[WhiteElo "2403"]
[BlackElo "2590"]
[TimeControl "180+1"]
[EndTime "14:18:31 PDT"]
[Termination "glebus008 won by resignation"]

1. d4 {[%clk 0:03:00.9]} 1... d5 {[%clk 0:03:00.1]} 2. c4 {[%clk 0:03:00.6]}
2... c6 {[%clk 0:03:00.6]} 3. cxd5 {[%clk 0:03:00]} 3... cxd5 {[%clk 0:03:01.5]}
4. Nc3 {[%clk 0:03:00.1]} 4... Nc6 {[%clk 0:03:01.9]} 5. Nf3 {[%clk 0:02:59.7]}
5... Bf5 {[%clk 0:03:02.1]} 6. Qb3 {[%clk 0:02:55.7]} 6... Nf6 {[%clk
0:03:00.4]} 7. Qxb7 {[%clk 0:02:54.5]} 7... Rc8 {[%clk 0:03:00.2]} 8. e4 {[%clk
0:02:51.9]} 8... dxe4 {[%clk 0:02:59.2]} 9. Bb5 {[%clk 0:02:51]} 9... exf3
{[%clk 0:02:56.5]} 10. Bxc6+ {[%clk 0:02:50.6]} 10... Bd7 {[%clk 0:02:56.7]} 11.
Bxd7+ {[%clk 0:02:40.6]} 11... Qxd7 {[%clk 0:02:57.6]} 12. Qxf3 {[%clk
0:02:40.5]} 12... Qxd4 {[%clk 0:02:53.5]} 13. Be3 {[%clk 0:02:37.5]} 13... Qc4
{[%clk 0:02:53]} 14. Rc1 {[%clk 0:02:27.6]} 14... e6 {[%clk 0:02:42.6]} 15. a3
{[%clk 0:02:08]} 15... Qa6 {[%clk 0:02:18.9]} 16. Qe2 {[%clk 0:02:04.1]} 16...
Qxe2+ {[%clk 0:02:16.7]} 17. Kxe2 {[%clk 0:02:04]} 17... Bd6 {[%clk 0:02:14.5]}
18. Nb5 {[%clk 0:02:02.5]} 18... Rxc1 {[%clk 0:02:13.6]} 19. Nxd6+ {[%clk
0:02:00.9]} 19... Ke7 {[%clk 0:02:11.4]} 20. Rxc1 {[%clk 0:01:56.1]} 20... Kxd6
{[%clk 0:02:11.6]} 21. Bxa7 {[%clk 0:01:55.6]} 21... Nd5 {[%clk 0:02:11.5]} 22.
Bc5+ {[%clk 0:01:53]} 22... Ke5 {[%clk 0:02:11.2]} 23. g3 {[%clk 0:01:46.2]}
23... g5 {[%clk 0:02:08.7]} 24. Kd3 {[%clk 0:01:38.5]} 24... Ra8 {[%clk
0:02:03.3]} 25. Kc4 {[%clk 0:01:33.9]} 25... Ke4 {[%clk 0:02:00]} 26. Rd1 {[%clk
0:01:27.5]} 26... Kf3 {[%clk 0:01:50.5]} 27. h4 {[%clk 0:01:12.9]} 27... g4
{[%clk 0:01:50.3]} 28. Rd3+ {[%clk 0:01:11.2]} 28... Ke4 {[%clk 0:01:49.1]} 29.
Rd4+ {[%clk 0:01:11.2]} 29... Kf3 {[%clk 0:01:48.1]} 30. Rd3+ {[%clk 0:01:09.3]}
30... Ke2 {[%clk 0:01:44.3]} 31. b4 {[%clk 0:01:02.2]} 31... Rc8 {[%clk
0:01:33.3]} 32. Rb3 {[%clk 0:01:01.9]} 32... f5 {[%clk 0:01:30]} 33. a4 {[%clk
0:01:02]} 33... f4 {[%clk 0:01:27.5]} 34. gxf4 {[%clk 0:00:58.3]} 34... Nxf4
{[%clk 0:01:19.1]} 35. a5 {[%clk 0:00:58.7]} 35... Ra8 {[%clk 0:01:14.2]} 36.
Re3+ {[%clk 0:00:52.7]} 36... Kxf2 {[%clk 0:01:12.1]} 37. Rxe6+ {[%clk
0:00:48.4]} 37... Kf3 {[%clk 0:01:11.8]} 38. Rf6 {[%clk 0:00:48.3]} 38... Ke4
{[%clk 0:01:07.9]} 39. a6 {[%clk 0:00:42.6]} 39... g3 {[%clk 0:01:07.2]} 40. b5
{[%clk 0:00:41.9]} 40... g2 {[%clk 0:01:06.5]} 41. a7 {[%clk 0:00:37]} 41... Rc8
{[%clk 0:01:06.1]} 42. Rc6 {[%clk 0:00:34]} 42... Ra8 {[%clk 0:01:01.3]} 43. b6
{[%clk 0:00:34]} 43... Nd3 {[%clk 0:00:59.8]} 44. Re6+ {[%clk 0:00:31]} 44...
Ne5+ {[%clk 0:00:57.2]} 45. Rxe5+ {[%clk 0:00:31.3]} 45... Kxe5 {[%clk
0:00:57.3]} 46. b7 {[%clk 0:00:32.2]} 46... Rc8 {[%clk 0:00:52.5]} 47. a8=Q
{[%clk 0:00:31.5]} 47... Rxc5+ {[%clk 0:00:51.6]} 48. Kb4 {[%clk 0:00:26.6]}
48... g1=Q {[%clk 0:00:45.4]} 49. b8=Q+ {[%clk 0:00:26.8]} 49... Kd4 {[%clk
0:00:41.3]} 50. Qf4+ {[%clk 0:00:21.8]} 50... Kd3 {[%clk 0:00:41.5]} 51. Qaf3+
{[%clk 0:00:20.1]} 51... Kc2 {[%clk 0:00:40.9]} 52. Q4e4+ {[%clk 0:00:18.3]}
52... Kc1 {[%clk 0:00:38]} 53. Qee3+ {[%clk 0:00:17.6]} 53... Kc2 {[%clk
0:00:36.6]} 54. Qxg1 {[%clk 0:00:17.2]} 54... Re5 {[%clk 0:00:27]} 55. Qgg2+
{[%clk 0:00:16.9]} 55... Re2 {[%clk 0:00:25.5]} 56. Qfxe2+ {[%clk 0:00:16.7]}
1-0

[Event "Late-Titled-Tuesday-Blitz-July-09-2024"]
[Site "Chess.com"]
[Date "2024.07.09"]
[Round "2"]
[White "ivanquiroga"]
[Black "jk13"]
[Result "0-1"]
[WhiteElo "2382"]
[BlackElo "2657"]
[TimeControl "180+1"]
[EndTime "14:18:32 PDT"]
[Termination "jk13 won by resignation"]

1. d4 {[%clk 0:02:56.6]} 1... Nf6 {[%clk 0:02:59.5]} 2. c4 {[%clk 0:02:56.1]}
2... e6 {[%clk 0:03:00.4]} 3. g3 {[%clk 0:02:54.2]} 3... Bb4+ {[%clk 0:03:00.9]}
4. Bd2 {[%clk 0:02:54.1]} 4... Bxd2+ {[%clk 0:03:01.5]} 5. Nxd2 {[%clk 0:02:54]}
5... O-O {[%clk 0:03:02.4]} 6. Bg2 {[%clk 0:02:54.1]} 6... d6 {[%clk 0:03:03.3]}
7. Ngf3 {[%clk 0:02:54]} 7... Qe7 {[%clk 0:03:04]} 8. e4 {[%clk 0:02:53.7]} 8...
e5 {[%clk 0:03:04.9]} 9. d5 {[%clk 0:02:52.4]} 9... Bg4 {[%clk 0:03:03.6]} 10.
h3 {[%clk 0:02:51.6]} 10... Bxf3 {[%clk 0:03:03.6]} 11. Bxf3 {[%clk 0:02:51.7]}
11... a5 {[%clk 0:03:02.4]} 12. Qe2 {[%clk 0:02:49.6]} 12... Na6 {[%clk
0:03:02.4]} 13. O-O {[%clk 0:02:48.5]} 13... Nc5 {[%clk 0:02:55.6]} 14. b3
{[%clk 0:02:46.8]} 14... g6 {[%clk 0:02:53.3]} 15. a3 {[%clk 0:02:46.7]} 15...
Ra7 {[%clk 0:02:44.8]} 16. b4 {[%clk 0:02:45.5]} 16... Na6 {[%clk 0:02:45.5]}
17. Nb3 {[%clk 0:02:36.6]} 17... axb4 {[%clk 0:02:43.5]} 18. axb4 {[%clk
0:02:36.5]} 18... Rfa8 {[%clk 0:02:44.2]} 19. b5 {[%clk 0:02:34.7]} 19... Nc5
{[%clk 0:02:40.5]} 20. Rxa7 {[%clk 0:02:33]} 20... Rxa7 {[%clk 0:02:41.4]} 21.
Nxc5 {[%clk 0:02:29.4]} 21... dxc5 {[%clk 0:02:42.3]} 22. Qb2 {[%clk 0:02:27.1]}
22... Ra4 {[%clk 0:02:34.6]} 23. Qc3 {[%clk 0:02:18.8]} 23... Nd7 {[%clk
0:02:29.3]} 24. Ra1 {[%clk 0:02:16.1]} 24... Rxa1+ {[%clk 0:02:23.3]} 25. Qxa1
{[%clk 0:02:17]} 25... b6 {[%clk 0:02:18.4]} 26. Qa8+ {[%clk 0:02:13.4]} 26...
Kg7 {[%clk 0:02:18.5]} 27. Qc6 {[%clk 0:01:58.2]} 27... Nf6 {[%clk 0:02:18.6]}
28. Kg2 {[%clk 0:01:52.3]} 28... Ne8 {[%clk 0:02:18.5]} 29. Qa8 {[%clk
0:01:43.4]} 29... Nd6 {[%clk 0:02:18.4]} 30. Qa2 {[%clk 0:01:42.3]} 30... h5
{[%clk 0:02:14.1]} 31. h4 {[%clk 0:01:39.1]} 31... f6 {[%clk 0:02:06.8]} 32. Qc2
{[%clk 0:01:22.4]} 32... Qe8 {[%clk 0:01:59.5]} 33. Qa2 {[%clk 0:01:19.9]} 33...
Qc8 {[%clk 0:01:53.4]} 34. Kh2 {[%clk 0:01:18.1]} 34... Qe8 {[%clk 0:01:42.6]}
35. Bg2 {[%clk 0:01:16.1]} 35... f5 {[%clk 0:01:41]} 36. f3 {[%clk 0:01:13.5]}
36... Qe7 {[%clk 0:01:39.6]} 37. Qc2 {[%clk 0:01:06.7]} 37... f4 {[%clk
0:01:36.4]} 38. Bf1 {[%clk 0:00:59.1]} 38... fxg3+ {[%clk 0:01:26.5]} 39. Kxg3
{[%clk 0:01:00]} 39... g5 {[%clk 0:01:21.8]} 40. Qh2 {[%clk 0:00:47.5]} 40...
Kg6 {[%clk 0:01:17.2]} 41. Be2 {[%clk 0:00:40.1]} 41... Qf6 {[%clk 0:01:15.9]}
42. hxg5 {[%clk 0:00:36.5]} 42... Qf4+ {[%clk 0:01:06.9]} 43. Kh3 {[%clk
0:00:29.8]} 43... Qxh2+ {[%clk 0:01:04.3]} 44. Kxh2 {[%clk 0:00:30.7]} 44...
Kxg5 {[%clk 0:01:04.8]} 45. Kg3 {[%clk 0:00:30.7]} 45... Nc8 {[%clk 0:00:51.6]}
46. Bf1 {[%clk 0:00:20.6]} 46... Ne7 {[%clk 0:00:50.1]} 47. Bh3 {[%clk
0:00:12.6]} 47... h4+ {[%clk 0:00:50.5]} 48. Kf2 {[%clk 0:00:11.7]} 48... Kf4
{[%clk 0:00:51.4]} 49. Be6 {[%clk 0:00:08.1]} 49... Ng6 {[%clk 0:00:45.5]} 50.
Bf5 {[%clk 0:00:08.5]} 50... Nh8 {[%clk 0:00:34]} 51. Be6 {[%clk 0:00:08.4]}
51... Ng6 {[%clk 0:00:29.5]} 52. Bf5 {[%clk 0:00:08.7]} 52... Nf8 {[%clk
0:00:23.6]} 53. Be6 {[%clk 0:00:08.8]} 53... Nh7 {[%clk 0:00:22]} 54. Bf5 {[%clk
0:00:09.2]} 54... Ng5 {[%clk 0:00:19.4]} 55. Be6 {[%clk 0:00:08.6]} 55... Nxf3
{[%clk 0:00:19]} 0-1